lending/lending_fUSD_20240721
["ID","MTS","AMOUNT","RATE_DAILY","PERIOD"]
[332786402,1721520647584,-163.04018845,0.000249,2]
[332786403,1721520647595,-340.9024296,0.000249,2]
[332786404,1721520647605,-50100.70706805,0.000249,2]
[332786405,1721520647651,-33942.84952729,0.000249,2]
[332786406,1721520647662,-282.60933554,0.000249,2]
[332786407,1721520647672,-449.91417706,0.000249,2]
[332786408,1721520647682,-1137.32403513,0.00024979,2]
[332786409,1721520647692,-3974.41544109,0.00024979,2]
[332786410,1721520647701,-10066.7821862,0.00024986,5]
[332786411,1721520647711,-327.76679983,0.00024989,2]
[332786412,1721520647722,-362.49791146,0.00024989,2]
[332786413,1721520647732,-25166.9554654,0.0002499,5]
[332786414,1721520647743,-50333.9109308,0.0002499,5]
[332786415,1721520647753,-1963.845846,0.00024996,2]
[332786416,1721520647764,-1763.68807899,0.00024996,2]
[332786417,1721520647774,-1280.05917091,0.00024996,2]
[332786418,1721520647784,-188.14325193,0.00024999,2]
[332786419,1721520647794,-500.0,0.00024999,2]
[332786420,1721520647804,-492.39961008,0.00024999,2]
[332786421,1721520647814,-1264.14059556,0.00024999,2]
[332786422,1721520647824,-270.14625122,0.00024999,2]
[332786423,1721520647834,-831.95,0.00024999,2]
[332786424,1721520647844,-172215.47774001,0.00025,7]
[332786425,1721520647855,-2190.42472446,0.00025,2]
[332786426,1721520647865,-277565.11344517,0.00025,2]
[332786427,1721520647878,-348.04079335,0.00025,2]
[332786428,1721520649336,-935.53466279,0.0002012,2]
[332786429,1721520649371,-9444.10980622,0.0002012,2]
[332786430,1721520649381,-188.5113815,0.00024989,2]
[332786431,1721520649391,-155.0,0.00024999,2]
[332786432,1721520649402,-36341.156426,0.00025,2]
[332786433,1721520649416,-4786.27062389,0.00025,2]
[332786434,1721520649431,-895.73293621,0.00025,2]
[332786435,1721520649442,-440.29978316,0.00025,2]
[332786436,1721520649454,-518.79764672,0.00025,2]
[332786437,1721520649467,-2356.43045917,0.00025,2]
[332786438,1721520649483,-254.08592998,0.00025,2]
[332786439,1721520649496,-5780.45101238,0.00025,2]
[332786440,1721520649509,-2910.55810647,0.00025,2]
[332786441,1721520649524,-890.2,0.00025,2]
[332786442,1721520649542,-1356.9970628,0.00025,2]
[332786443,1721520649560,-319.31715993,0.00025,2]
[332786444,1721520649579,-3207.21499114,0.00025,2]
[332786445,1721520649600,-413.71364922,0.00025,2]
[332786446,1721520649643,-344.65771857,0.00025,2]
[332786453,1721521438545,216.64,0.00025008,120]
[332786482,1721521832214,-818.82444517,0.00012612,2]
[332786483,1721521832228,-757.13168339,0.00012612,2]
[332786484,1721521832243,-522.58091288,0.00012612,2]
[332786485,1721521832276,-5795.96914443,0.00012612,2]
[332786486,1721521832286,-528.222907,0.00013564,2]
[332786487,1721521832296,-173.15774171,0.00013633,2]
[332786488,1721521832307,-250.0,0.00013668,2]
[332786489,1721521832318,-6699.60089959,0.00013698,2]
[332786490,1721521832327,-12599.52593577,0.0001379,2]
[332786491,1721521832339,-150.0,0.00013859,2]
[332786492,1721521832348,-15541.6425025,0.0001386,2]
[332786493,1721521832380,-350.0,0.0001386,2]
[332786494,1721521832391,-279.69657276,0.0001386,2]
[332786495,1721521832402,-682.85177341,0.0001386,2]
[332786496,1721521832413,-657.80799762,0.0001386,2]
[332786497,1721521832442,-2886.54538565,0.0001386,2]
[332786498,1721521832605,-10927.07321666,0.0001386,2]
[332786499,1721521832625,-7446.10655313,0.0001386,2]
[332786500,1721521832637,-225721.27599827,0.0001386,2]
[332786501,1721521832647,-1484.81498679,0.00013873,2]
[332786502,1721521832656,-306.49459694,0.00013899,2]
[332786503,1721521832666,-164.52,0.00013973,2]
[332786504,1721521832675,-418.14,0.00013973,2]
[332786505,1721521832685,-163.04018845,0.00013983,2]
[332786507,1721521832694,-1699.96825437,0.00013986,2]
[332786508,1721521832703,-139651.803104,0.0001399,3]
[332786510,1721521832712,-177.15379087,0.0001399,2]
[332786511,1721521832722,-500.0,0.00013999,2]
[332786512,1721521832731,-194.67972705,0.00013999,2]
[332786513,1721521832740,-73299.3323697,0.00014,2]
[332786514,1721521832752,-16007.88443979,0.00014,2]
[332786515,1721521832786,-711.6,0.00014,2]
[332786516,1721521832797,-335.92939992,0.00014,2]
[332786517,1721521832809,-348.89010204,0.00014,2]
[332786518,1721521832821,-291.505,0.00014,2]
[332786520,1721521838494,-1233.07401665,0.00014,2]
[332786528,1721521838565,-410.19142791,0.00014,2]
[332786738,1721521840566,-38.38689923,0.00014,2]
[332786740,1721521840578,-550.24674145,0.00014,2]
[332786753,1721521840701,-2000.0,0.00014,2]
[332786756,1721521840712,-2217.04828504,0.00014,2]
[332786758,1721521840724,-705.93999999,0.00014,2]
[332787009,1721521843382,-49706.55292704,0.00014,2]
[332787012,1721521843405,-297084.97922874,0.00014,2]
[332787028,1721521843557,-701.11,0.00014,2]
[332787031,1721521843569,-3397.93999999,0.00014,2]
[332787036,1721521843615,-382858.30162102,0.00014,2]
[332787259,1721521846384,-659.8585475,0.00014,2]
[332787272,1721521846500,-5829.88847547,0.00014,2]
[332787594,1721522235272,255.25,0.00011947,2]
[332787595,1721522347641,158.17,0.00018849,30]
[332787600,1721522765111,256.98,0.00010824,2]
[332787601,1721522805866,-150.0,0.00012611,2]
[332787602,1721522911421,158.17,0.00018849,30]
[332787608,1721523031442,-1000.0,0.00012637,2]
[332787609,1721523031451,-4654.64,0.00012639,2]
[332787610,1721523031461,-37980.46304271,0.00012651,2]
[332787611,1721523031471,-250.0,0.00012661,2]
[332787612,1721523031481,-23900.0,0.00012661,2]
[332787613,1721523031491,-200.0,0.00012686,2]
[332787614,1721523031501,-1368.43,0.00012722,2]
[332787615,1721523031510,-500.0,0.00012796,2]
[332787616,1721523031519,-750.0,0.00012818,2]
[332787617,1721523031529,-672.4,0.00012847,2]
[332787618,1721523031539,-161.91,0.00012872,2]
[332787619,1721523031549,-348.42,0.00012896,2]
[332787620,1721523031559,-500.0,0.000129,2]
[332787621,1721523031569,-150.0,0.00013087,2]
[332787622,1721523031580,-150.99,0.00013088,2]
[332787623,1721523031590,-179.99,0.00013088,2]
[332787624,1721523031604,-15676.09,0.00013088,2]
[332787625,1721523031614,-256.98,0.00013088,2]
[332787626,1721523031624,-150.0,0.00013103,2]
[332787627,1721523031633,-150.0,0.0001337,2]
[332787628,1721523031643,-1852.42,0.00013404,2]
[332787629,1721523031653,-887.80654976,0.00013489,2]
[332787630,1721523031662,-805.42887238,0.00013499,2]
[332787631,1721523031672,-156.04927212,0.00013579,2]
[332787632,1721523031682,-80690.0,0.00013584,2]
[332787633,1721523031692,-219.6763,0.00013599,2]
[332787634,1721523031702,-294.6914,0.00013599,2]
[332787635,1721523031711,-200.0,0.00013612,2]
[332787636,1721523031721,-155.0,0.00013648,2]
[332787638,1721523031731,-329.44926346,0.00013648,2]
[332787640,1721523031740,-431.81455229,0.0001367,2]
[332787642,1721523031750,-347.68317165,0.0001367,2]
[332787644,1721523031760,-155.72385129,0.0001367,2]
[332787646,1721523031769,-242.8688521,0.00013698,2]
[332787648,1721523031779,-499.99,0.00013698,2]
[332787650,1721523031788,-250.0,0.00013699,2]
[332787651,1721523031798,-2847.42,0.00013699,2]
[332787652,1721523031808,-500.0,0.00013699,2]
[332787653,1721523031818,-1647.28,0.00013699,2]
[332787654,1721523031828,-2751.0,0.00013699,2]
[332787655,1721523031838,-5283.79,0.00013699,2]
[332787656,1721523031848,-200.0,0.00013699,2]
[332787657,1721523031857,-171.25,0.00013699,2]
[332787658,1721523031867,-9999.99,0.00013699,2]
[332787659,1721523031877,-168.7,0.000137,2]
[332787660,1721523031886,-1163.4179,0.0001376,2]
[332787661,1721523031896,-12380.19299682,0.0001379,2]
[332787662,1721523031906,-1707.54933604,0.00013799,2]
[332787663,1721523031916,-5125.95,0.00013825,2]
[332787664,1721523031925,-1228.99419,0.0001386,2]
[332787665,1721523031935,-1000.0,0.000139,2]
[332787666,1721523031944,-195.1863,0.000139,2]
[332787667,1721523031955,-2500.0,0.000139,2]
[332787668,1721523031964,-154.66402118,0.000139,2]
[332787669,1721523031974,-783.64828696,0.000139,2]
[332787670,1721523031983,-179.80965226,0.00013901,2]
[332787671,1721523031993,-384.5473409,0.00013925,2]
[332787672,1721523032003,-169.24846796,0.00013957,2]
[332787673,1721523032012,-173.31,0.00013969,2]
[332787674,1721523032022,-160.92,0.00013973,2]
[332787675,1721523032033,-1687.18838099,0.0001399,3]
[332787676,1721523032042,-150.06982541,0.0001399,2]
[332787677,1721523032052,-292491.61964261,0.00014,2]
[332787678,1721523032086,-1622.15927746,0.00014,2]
[332787679,1721523032098,-845.39999995,0.00014,2]
[332787680,1721523032109,-527.06338007,0.00014,2]
[332787681,1721523032120,-1904.64529424,0.00014,2]
[332787682,1721523032147,-5132.47009967,0.00014,2]
[332787683,1721523037625,-1176.71115338,0.000138,2]
[332787684,1721523037722,-279.86,0.000138,2]
[332787685,1721523037733,-163.58624662,0.000138,2]
[332787686,1721523037743,-309.75211598,0.00014,2]
[332787687,1721523037844,-1720.75393469,0.00014,2]
[332787688,1721523037871,-600.5,0.00014,2]
[332787690,1721523037882,-372.94911677,0.00014,2]
[332787824,1721523039450,-3063.7,0.00014,2]
[332787831,1721523039510,-1114.04420081,0.00014,2]
[332787833,1721523039521,-1950.0,0.00014,2]
[332787839,1721523039570,-65339.4300275,0.00014,2]
[332787841,1721523039582,-32332.34669367,0.00014,2]
[332787843,1721523039593,-825.15284921,0.00014,2]
[332787856,1721523039712,-4661.7770805,0.00014,2]
[332787858,1721523039725,-600.96056067,0.00014,2]
[332787860,1721523039736,-1465.41185795,0.00014,2]
[332787862,1721523039747,-158180.79394596,0.00014,2]
[332787865,1721523039759,-1661.8907034,0.00014,2]
[332788160,1721523042695,-49805.91732738,0.00014,2]
[332788162,1721523042707,-297242.54270713,0.00014,2]
[332788167,1721523042754,-276.02726063,0.00014,2]
[332788179,1721523042867,-357.69482547,0.00014,2]
[332788181,1721523042879,-31928.1077014,0.00014,2]
[332788194,1721523042996,-3034.69999998,0.00014,2]
[332788207,1721523043130,-507.53028692,0.00014,2]
[332788498,1721523046205,-362.68407531,0.00013648,2]
[332788501,1721523046218,-69.13047698,0.00013648,2]
[332788503,1721523046227,-587.39058046,0.00014,2]
[332788505,1721523046239,-1385.93835439,0.00014,2]
[332788507,1721523046251,-3930.81363626,0.00014,2]
[332788509,1721523046263,-622.39526304,0.00014,2]
[332788518,1721523046348,-279.51260892,0.00014,2]
[332788520,1721523046364,-429.34971866,0.00014,2]
[332788649,1721523439895,158.17,0.00018849,30]
[332788650,1721523489724,150.0,0.00011841,2]
[332788651,1721523489748,95.44,0.00011841,2]
[332788652,1721523579351,300.0,0.00011841,2]
[332788668,1721524027345,158.17,0.00018849,30]
[332788674,1721524067808,233.16,0.00010806,2]
[332788694,1721524231682,-396.24892489,0.00012626,2]
[332788695,1721524231737,-1364.93514075,0.00012626,2]
[332788696,1721524231747,-168.7,0.00012695,2]
[332788697,1721524231757,-1000.0,0.00012709,2]
[332788698,1721524231767,-485.13,0.00012726,2]
[332788699,1721524231776,-23900.0,0.00012895,2]
[332788700,1721524231785,-184.19,0.00012922,2]
[332788701,1721524231794,-155.46196403,0.00012924,2]
[332788702,1721524231804,-19660.26160328,0.00012928,2]
[332788703,1721524231814,-177.03868997,0.00012964,2]
[332788704,1721524231824,-500.0,0.00012965,2]
[332788705,1721524231833,-250.0,0.00013064,2]
[332788706,1721524231842,-3152.13,0.00013064,2]
[332788707,1721524231851,-233.16,0.0001307,2]
[332788708,1721524231860,-1069.94736295,0.00013098,2]
[332788709,1721524231869,-2761.3726,0.00013479,2]
[332788710,1721524231879,-150.0,0.00013483,2]
[332788711,1721524231888,-3762.1038,0.00013484,2]
[332788712,1721524231897,-615.5753,0.00013484,2]
[332788713,1721524231906,-782.57,0.00013484,2]
[332788714,1721524231915,-14015.37665666,0.00013484,2]
[332788715,1721524231926,-4135.95334334,0.00013484,2]
[332788716,1721524231935,-1627.9,0.00013484,2]
[332788717,1721524231945,-499.99,0.00013484,2]
[332788718,1721524231954,-759.04945973,0.00013489,2]
[332788719,1721524231964,-3148.942227,0.0001351,2]
[332788720,1721524231973,-3245.5692,0.00013599,2]
[332788722,1721524231983,-1388.96164188,0.00013648,2]
[332788724,1721524231992,-691.82126077,0.00013698,2]
[332788726,1721524232001,-167.76,0.00013699,2]
[332788727,1721524232010,-250.0,0.00013699,2]
[332788728,1721524232020,-1352.65,0.00013699,2]
[332788729,1721524232029,-1162.66,0.00013699,2]
[332788730,1721524232039,-200.0,0.00013699,2]
[332788731,1721524232048,-641.60594563,0.00013699,2]
[332788732,1721524232061,-240.91994208,0.00013799,2]
[332788733,1721524232070,-488.66646635,0.00013825,2]
[332788734,1721524232079,-235.82956703,0.00013825,2]
[332788735,1721524232088,-379.74976645,0.00013825,2]
[332788736,1721524232098,-170.67,0.00013853,2]
[332788737,1721524232107,-1024.16182,0.0001386,2]
[332788738,1721524232116,-196.37015947,0.00013879,2]
[332788739,1721524232126,-155.0,0.00013879,2]
[332788740,1721524232135,-155.0,0.00013889,2]
[332788741,1721524232144,-304.93530355,0.00013899,2]
[332788742,1721524232154,-1000.0,0.000139,2]
[332788743,1721524232163,-178.58879389,0.000139,2]
[332788744,1721524232172,-6036.32053059,0.000139,2]
[332788745,1721524232207,-286.18192272,0.000139,2]
[332788746,1721524232232,-1761.18406562,0.00012711,2]
[332788747,1721524232242,-38911.93864669,0.000139,2]
[332788748,1721524232251,-154.66402116,0.000139,2]
[332788749,1721524232260,-12078.73138635,0.000139,2]
[332788750,1721524232269,-1873.1261934,0.000139,2]
[332788751,1721524232279,-522.4321913,0.000139,2]
[332788752,1721524232289,-356.53488145,0.00013986,2]
[332788753,1721524232298,-150.06982542,0.0001399,2]
[332788754,1721524232307,-669290.34058956,0.00014,2]
[332788755,1721524232320,-1656.36324461,0.00014,2]
[332788757,1721524237678,-331.0,0.00012795,2]
[332788758,1721524237689,-889.5174802,0.00012795,2]
[332788776,1721524238202,-540.66658542,0.00012795,2]
[332788778,1721524238213,-9.43342408,0.00013098,2]
[332788782,1721524238253,-598.84,0.00013098,2]
[332788966,1721524239824,-401.12159582,0.00013098,2]
[332788969,1721524239833,-2273.61717369,0.00013997,2]
[332788972,1721524239843,-78790.95941955,0.00014,2]
[332788983,1721524239884,-62278.5135305,0.00014,2]
[332788998,1721524239950,-2834.67497307,0.00014,2]
[332789001,1721524239961,-308.39200581,0.00014,2]
[332789015,1721524240074,-1606.0,0.00014,2]
[332789289,1721524242768,-8052.02943116,0.00014,2]
[332789304,1721524242905,-443.95024221,0.00014,2]
[332789306,1721524242916,-44444.00001785,0.00014,2]
[332789310,1721524242943,-297352.24061046,0.00014,2]
[332789328,1721524243112,-740.76734568,0.00014,2]
[332789592,1721524245786,-301.33416204,0.00014,2]
[332789604,1721524245910,-6733.83503002,0.00014,2]
[332789606,1721524245922,-275.00001556,0.00014,2]
[332789608,1721524245933,-522.93853237,0.00014,2]
[332789611,1721524245945,-13900.878368,0.00014,2]
[332789621,1721524246034,-3404.49953242,0.00014,2]
[332789805,1721524553680,158.17,0.00018849,30]
[332789807,1721524621287,304.09,0.00011161,2]
[332789850,1721525151620,158.17,0.00018849,30]
[332789867,1721525238269,1286.76187843,0.00011959,2]
[332789874,1721525262309,150.0,0.00010606,2]
[332789875,1721525262332,138.88,0.00010606,2]
[332789892,1721525367248,150.0,0.00011959,2]
[332789893,1721525367270,150.0,0.00011959,2]
[332789894,1721525367292,150.0,0.00011959,2]
[332789895,1721525367313,38.27607387,0.00011959,2]
[332789926,1721525432455,-360.246502,0.00012395,2]
[332789927,1721525432466,-2597.6944,0.00012395,2]
[332789928,1721525432478,-1409.0351965,0.00012395,2]
[332789929,1721525432487,-800.0,0.00012492,2]
[332789930,1721525432497,-169.56,0.00012494,2]
[332789931,1721525432507,-437.64,0.00012503,2]
[332789932,1721525432518,-250.0,0.00012551,2]
[332789933,1721525432527,-13758.0297375,0.00012588,2]
[332789934,1721525432540,-10141.9702625,0.00012588,2]
[332789935,1721525432549,-200.0,0.00012635,2]
[332789936,1721525432559,-485.43834991,0.00012651,2]
[332789937,1721525432568,-250.0,0.000127,2]
[332789938,1721525432578,-160.02,0.00012704,2]
[332789939,1721525432587,-418.67,0.00012704,2]
[332789940,1721525432596,-179.99,0.00012704,2]
[332789941,1721525432606,-499.99,0.00012704,2]
[332789942,1721525432615,-5022.33,0.0001278,2]
[332789943,1721525432626,-150.0,0.00012855,2]
[332789944,1721525432635,-938.6622196,0.00012856,2]
[332789945,1721525432645,-484.42461031,0.00012856,2]
[332789946,1721525432655,-2385.98581592,0.00012856,2]
[332789947,1721525432665,-273.48517013,0.00012856,2]
[332789948,1721525432675,-450.0,0.00012856,2]
[332789949,1721525432685,-526.5556096,0.00012856,2]
[332789950,1721525432696,-155.34395127,0.00012856,2]
[332789951,1721525432708,-288.88,0.00012869,2]
[332789952,1721525432718,-200.0,0.00012997,2]
[332789953,1721525432727,-150.99,0.00012997,2]
[332789954,1721525432737,-188.64,0.00013119,2]
[332789955,1721525432747,-155.0,0.00013297,2]
[332789956,1721525432756,-306.12153882,0.00013302,2]
[332789957,1721525432766,-6051.40986587,0.0001331,2]
[332789958,1721525432776,-1297.28661763,0.0001331,2]
[332789959,1721525432786,-317.13174311,0.00013483,2]
[332789960,1721525432798,-48.99515915,0.00013483,2]
[332789961,1721525432808,-303.66616832,0.000135,2]
[332789962,1721525432818,-335.86599298,0.0001358,2]
[332789963,1721525432827,-170.37,0.00013699,2]
[332789964,1721525432837,-1611.04,0.00013699,2]
[332789965,1721525432847,-250.0,0.00013699,2]
[332789966,1721525432856,-424.13522049,0.00013699,2]
[332789967,1721525433003,-697.15780678,0.00013699,2]
[332789968,1721525433014,-384.5473409,0.00013773,2]
[332789969,1721525433025,-1000.0,0.000138,2]
[332789970,1721525433035,-19415.67054765,0.000138,2]
[332789971,1721525433045,-1716.7885,0.000138,2]
[332789972,1721525433055,-4793.35069395,0.000138,2]
[332789973,1721525433065,-279.86,0.000138,2]
[332789974,1721525433075,-163.47156618,0.000138,2]
[332789975,1721525433084,-329.44926346,0.00013825,2]
[332789976,1721525433094,-1853.46819,0.0001386,2]
[332789977,1721525433104,-260.40195901,0.00013879,2]
[332789978,1721525433114,-158.98232519,0.00013879,2]
[332789979,1721525433124,-242.8688521,0.00013889,2]
[332789980,1721525433134,-955.6967521,0.00013889,2]
[332789981,1721525433144,-268.97018418,0.0001389,3]
[332789982,1721525433153,-192.11,0.0001389,3]
[332789983,1721525433163,-276.97999459,0.00013896,2]
[332789984,1721525433172,-270.14625122,0.00013899,2]
[332789985,1721525433182,-3325.0,0.000139,2]
[332789986,1721525433192,-1000.0,0.000139,2]
[332789987,1721525433202,-4287.7009,0.000139,2]
[332789988,1721525433212,-176.13764371,0.000139,2]
[332789989,1721525433223,-283779.3372,0.000139,2]
[332789990,1721525433233,-1220.44422052,0.000139,2]
[332789991,1721525433243,-198.96306482,0.000139,2]
[332789992,1721525433254,-287.02081104,0.000139,2]
[332789993,1721525433264,-1889.56403398,0.000139,2]
[332789994,1721525433274,-255.0,0.0001396,2]
[332789995,1721525433284,-397.23,0.00013973,2]
[332789996,1721525433295,-155.0,0.00013986,2]
[332789997,1721525433305,-155.0,0.00013989,2]
[332789998,1721525433315,-403.45527627,0.0001399,3]
[332789999,1721525433325,-153.08952049,0.0001399,2]
[332790000,1721525433335,-639.131448,0.00013999,2]
[332790001,1721525433344,-300.0,0.00013999,2]
[332790002,1721525433354,-654.36216372,0.00013999,2]
[332790003,1721525433365,-285526.35904884,0.00014,2]
[332790004,1721525433377,-7469.78609692,0.00014,2]
[332790005,1721525433390,-5100.0,0.00014,2]
[332790006,1721525433402,-104366.191796,0.00014,2]
[332790014,1721525438359,-301.52429435,0.00013799,2]
[332790015,1721525438541,-27.97678476,0.00013799,2]
[332790017,1721525438551,-1162.61735587,0.00014,2]
[332790148,1721525440056,-312.3160075,0.00014,2]
[332790163,1721525440257,-574.61696002,0.00014,2]
[332790165,1721525440268,-1596.88006637,0.00014,2]
[332790167,1721525440279,-2371.47496843,0.00014,2]
[332790169,1721525440290,-561.97850452,0.00014,2]
[332790185,1721525440432,-777.78695552,0.00014,2]
[332790188,1721525440444,-9971.718,0.00014,2]
[332790190,1721525440455,-2322.1256357,0.00014,2]
[332790192,1721525440466,-340.78144659,0.00014,2]
[332790194,1721525440478,-1694342.88574529,0.00014,2]
[332790477,1721525443198,-18717.1864348,0.00014,2]
[332790479,1721525443211,-709.17,0.00014,2]
[332790481,1721525443223,-20235.82030018,0.00014,2]
[332790484,1721525443235,-8047.36758596,0.00014,2]
[332790486,1721525443246,-22163.18622214,0.00014,2]
[332790499,1721525443375,-650.96828781,0.00014,2]
[332790501,1721525443387,-1026.45642444,0.00014,2]
[332790503,1721525443399,-17935.4397145,0.00014,2]
[332790506,1721525443412,-3292.164575,0.00014,2]
[332790523,1721525443544,-2297.10281635,0.00014,2]
[332790527,1721525443557,-836.18367734,0.00014,2]
[332790531,1721525443568,-14435.04513219,0.00014,2]
[332790533,1721525443580,-6317.46577834,0.00014,2]
[332790535,1721525443592,-23521.76724492,0.00014,2]
[332790746,1721525446156,-593.0,0.0001386,2]
[332790747,1721525446166,-15751.51668327,0.00014,2]
[332790749,1721525446305,-376.58731798,0.00014,2]
[332790750,1721525446317,-2353.15427258,0.00014,2]
[332790751,1721525446328,-8036.765211,0.00014,2]
[332790752,1721525446484,-2535.49260384,0.00014,2]
[332790753,1721525446495,-947.59173478,0.00014,2]
[332790754,1721525446507,-284.30930453,0.00014,2]
[332790755,1721525446518,-894.74684282,0.00014,2]
[332790756,1721525446530,-3856.83320553,0.00014,2]
[332790757,1721525446541,-452.13463957,0.00014,2]
[332790806,1721525672474,158.17,0.00018849,30]
[332790807,1721525818405,150.0,0.00010656,2]
[332790808,1721525818428,137.16,0.00010656,2]
[332790815,1721526120022,208.9,0.00025008,120]
[332790820,1721526226109,158.17,0.00018849,30]
[332790826,1721526293630,-2000.0,0.00012513,2]
[332790827,1721526294980,-2000.0,0.00012513,2]
[332790828,1721526296009,-2000.0,0.00012513,2]
[332790829,1721526297100,-2000.0,0.00012513,2]
[332790830,1721526298204,-2000.0,0.00012513,2]
[332790831,1721526299348,-2000.0,0.00012513,2]
[332790833,1721526369253,301.29,0.00010623,2]
[332790834,1721526425354,150.0,0.00010623,2]
[332790835,1721526425375,150.0,0.00010623,2]
[332790836,1721526425395,112.41398176,0.00010623,2]
[332790911,1721526474504,150.0,0.00010623,2]
[332790912,1721526474526,5.10037096,0.00010623,2]
[332790913,1721526509541,150.0,0.00010623,2]
[332790914,1721526509562,105.82125267,0.00010623,2]
[332790925,1721526556338,150.0,0.00010623,2]
[332790926,1721526556359,150.0,0.00010623,2]
[332790927,1721526556381,112.41398176,0.00010623,2]
[332790929,1721526586342,147.27433898,0.00010623,2]
[332790930,1721526586365,265.13964278,0.00010623,2]
[332790931,1721526586564,160.22331655,0.00010623,2]
[332790939,1721526632570,-252.72893978,0.00012412,2]
[332790940,1721526632581,-165.15290821,0.00012413,2]
[332790941,1721526632592,-197.37256593,0.00012512,2]
[332790947,1721526632766,-102.62743407,0.00012512,2]
[332790948,1721526632778,-3579.40429504,0.00012513,2]
[332790949,1721526632792,-404.7199998,0.00012513,2]
[332790950,1721526632806,-600.0,0.00012513,2]
[332790951,1721526632820,-627.08000007,0.00012513,2]
[332790952,1721526632833,-404.72999987,0.00012513,2]
[332791006,1721526634213,-1095.19142246,0.00012513,2]
[332791007,1721526634225,-3139.4551916,0.00012513,2]
[332791008,1721526634237,-499.6,0.00012513,2]
[332791009,1721526634248,-999.9006,0.00012513,2]
[332791010,1721526634261,-549.91849116,0.00012513,2]
[332791011,1721526634270,-450.47470884,0.00012516,2]
[332791012,1721526634281,-549.52529116,0.00012516,2]
[332791013,1721526634291,-208.00323778,0.0001254,2]
[332791014,1721526634300,-335.9051174,0.0001254,2]
[332791015,1721526634309,-79.49055626,0.00012542,2]
[332791016,1721526634321,-448.74875887,0.00012542,2]
[332791017,1721526634332,-96.28525428,0.00012542,2]
[332791018,1721526634341,-150.91,0.00012546,2]
[332791019,1721526634350,-250.0,0.00012546,2]
[332791020,1721526634359,-160.17941804,0.00012818,2]
[332791021,1721526634368,-1231.38888767,0.00012876,2]
[332791022,1721526634377,-495.15879756,0.00012876,2]
[332791023,1721526634386,-601.68108693,0.00012876,2]
[332791024,1721526634396,-401.7898998,0.00012876,2]
[332791025,1721526634406,-301.29,0.00012887,2]
[332791026,1721526634415,-165.15290819,0.00013155,2]
[332791027,1721526634424,-557.0,0.00013243,2]
[332791028,1721526634433,-557.0,0.00013246,2]
[332791029,1721526634443,-557.0,0.0001325,2]
[332791030,1721526634452,-1005.17,0.0001325,2]
[332791031,1721526634461,-557.0,0.00013253,2]
[332791032,1721526634470,-557.0,0.00013257,2]
[332791033,1721526634479,-557.0,0.0001326,2]
[332791034,1721526634488,-557.0,0.00013264,2]
[332791035,1721526634498,-557.0,0.00013267,2]
[332791036,1721526634507,-217.08,0.00013268,2]
[332791037,1721526634517,-557.0,0.00013271,2]
[332791038,1721526634528,-168.7,0.00013274,2]
[332791039,1721526634538,-557.0,0.00013274,2]
[332791040,1721526634547,-557.0,0.00013278,2]
[332791041,1721526634556,-557.0,0.00013281,2]
[332791042,1721526634566,-557.0,0.00013285,2]
[332791043,1721526634575,-557.0,0.00013288,2]
[332791044,1721526634585,-150.0,0.00013288,2]
[332791045,1721526634594,-557.0,0.00013291,2]
[332791046,1721526634603,-557.0,0.00013295,2]
[332791047,1721526634613,-557.0,0.00013298,2]
[332791048,1721526634622,-557.0,0.00013302,2]
[332791049,1721526634632,-557.0,0.00013305,2]
[332791050,1721526634641,-557.0,0.00013309,2]
[332791051,1721526634651,-872.61269518,0.00013499,2]
[332791052,1721526634660,-600.0,0.000136,4]
[332791053,1721526634670,-1200.45112621,0.00013648,2]